[Event "EYCC Girls U14 2018"]
[Site "Riga"]
[Date "2018.08.24"]
[Round "5"]
[White "Allahverdiyeva, Ayan"]
[Black "Tsotsonava, Elene"]
[Result "1-0"]
[ECO "B33"]
[WhiteElo "2046"]
[BlackElo "1701"]
[Annotator "NA"]
[PlyCount "69"]
[EventDate "2018.08.20"]
[EventType "swiss"]
[EventCountry "LAT"]
[SourceTitle "playchess.com"]
[Source "ChessBase"]
[SourceQuality "1"]
[TimeControl "40/5400+30:1800+30"]

1. e4 {[%emt 0:00:41]} c5 {[%emt 0:00:00]} 2. Nf3 {[%emt 0:00:08]} Nc6 {[%emt 0:00:00]} 3. d4 {[%emt 0:00:04]} cxd4 {[%emt 0:00:00]} 4. Nxd4 {[%emt 0:00:02]} Nf6 {[%emt 0:00:00]} 5. Nc3 {[%emt 0:00:10]} e5 {[%emt 0:00:05]} 6. Ndb5 {[%emt 0:00:03]} d6 {[%emt 0:00:07]} 7. Bg5 {[%emt 0:00:03]} a6 {[%emt 0:00:06]} 8. Na3 {[%emt 0:00:01]} b5 {[%emt 0:00:06]} 9. Bxf6 {[%emt 0:00:13]} gxf6 {[%emt 0:00:08]} 10. Nd5 {[%emt 0:00:01]} f5 {[%emt 0:00:12]} 11. Bxb5 {[%emt 0:01:21]} axb5 {[%emt 0:00:53]} 12. Nxb5 {[%emt 0:00:04]} Ra4 {[%emt 0:09:18]} 13. c4 {[%emt 0:02:18]} Rxc4 {[%emt 0:14:33] B33: Sizilianisch (Lasker/Pelikan/Sweschnikow-Variante)} 14. O-O {[%emt 0:05:14]} Be6 $146 {[%emt 0:08:59]} ({Vorgänger:} 14... Be7 15. Rc1 Rc5 16. Qh5 O-O 17. b4 Nxb4 18. Nxb4 Rxb5 19. Nc6 Qe8 20. Rc3 f6 21. Qxe8 Rxe8 22. Nxe7+ Rxe7 23. Rxc8+ {½-½ (37) Sulskis,S (2555)-Pileckis,E (2403) Kaunas 2008}) 15. Ndc7+ {[%emt 0:16:41]} Kd7 {[%emt 0:01:10]} 16. exf5 {[%emt 0:03:30]} Bxf5 {[%emt 0:00:14]} 17. Qd5 {[%emt 0:00:04]} Rf4 {[%emt 0:04:55]} 18. Qxf7+ {[%emt 0:06:48]} Qe7 {[%emt 0:07:14]} (18... Be7 $11 19. Rfd1 Qg8 20. Rxd6+ Kc8 21. Qxg8+ Rxg8 22. Rxc6 Rxg2+ 23. Kxg2 Be4+ 24. Kf1 Bxc6) 19. Qb3 {[%emt 0:04:10]} Rb4 {[%emt 0:08:38]} 20. Qa3 $11 {[%emt 0:03:07]} Rg8 {[%emt 0:06:25]} 21. g3 {[%emt 0:04:17]} Qh4 {[%emt 0:05:09]} 22. Rac1 {[%emt 0:01:50]} Be4 {[%emt 0:01:46]} 23. Rfe1 {[%emt 0:18:12]} Be7 {[%emt 0:05:53]} 24. Qc3 {[%emt 0:07:18]} Bd8 {[%emt 0:06:41]} 25. Nxd6 {[%emt 0:10:32]} Kxd6 {[%emt 0:03:32]} 26. Qc5+ {[%emt 0:02:51]} Kxc7 {[%emt 0:05:28]} 27. Qxb4 {[%emt 0:00:20]} Bf3 {[%emt 0:00:40]} 28. Qb3 {[%emt 0:00:58]} e4 {[%emt 0:08:27]} 29. Qe6 {[%emt 0:00:50]} e3 {[%emt 0:02:57]} 30. Rxe3 {[%emt 0:00:35]} Qg4 {[%emt 0:00:40]} 31. Qf7+ {[%emt 0:02:57]} Kb8 {[%emt 0:00:19]} 32. Rb3+ {[%emt 0:01:18]} Nb4 {[%emt 0:00:21]} 33. Rc4 {[%emt 0:01:40]} Qg6 {[%emt 0:00:32]} 34. Rcxb4+ {[%emt 0:00:42]} Kc8 {[%emt 0:00:08]} 35. Rb8# {[%emt 0:00:03]} 1-0

[Event "EYCC Girls U14 2018"]
[Site "Riga"]
[Date "2018.08.24"]
[Round "5"]
[White "Kirchei, Viktoriia"]
[Black "Hakobyan, Astghik"]
[Result "1/2-1/2"]
[ECO "C07"]
[WhiteElo "1987"]
[BlackElo "1820"]
[Annotator "NA"]
[PlyCount "147"]
[EventDate "2018.08.20"]
[EventType "swiss"]
[EventCountry "LAT"]
[SourceTitle "playchess.com"]
[Source "ChessBase"]
[SourceQuality "1"]
[TimeControl "40/5400+30:1800+30"]

1. e4 {[%emt 0:00:00]} e6 {[%emt 0:00:00]} 2. d4 {[%emt 0:00:00]} d5 {[%emt 0:00:00]} 3. Nd2 {[%emt 0:00:00]} c5 {[%emt 0:00:00]} 4. exd5 {[%emt 0:00:00]} Qxd5 {[%emt 0:00:00]} 5. dxc5 {[%emt 0:00:00]} Bxc5 {[%emt 0:00:01]} 6. Ngf3 {[%emt 0:00:00]} Nf6 {[%emt 0:00:35] LiveBook: 315 Games} 7. Bc4 {[%emt 0:00:00]} Qc6 {[%emt 0:00:36] C07: French Tarrasch: 3...c5, 4 Ngf3 and 4 exd5 Qxd5} 8. Qe2 {[%emt 0:00:10]} Nbd7 {[%emt 0:00:58]} (8... O-O 9. Nb3 Nbd7 10. Bf4 Bd6 11. Nbd4 Qb6 12. Bxd6 Qxd6 13. O-O-O Qf4+ 14. Kb1 Nb6 15. Bb3 {0-1 (28) Naiditsch,A (2705)-Le,Q (2737) Riadh 2017}) 9. O-O {[%emt 0:01:07]} O-O {[%emt 0:00:23]} 10. Nb3 {[%emt 0:00:41]} b6 {[%emt 0:03:13]} 11. Nxc5 {[%emt 0:06:57]} Nxc5 {[%emt 0:00:40]} 12. Ne5 {[%emt 0:01:56]} Qe4 {[%emt 0:01:09]} 13. Qxe4 {[%emt 0:05:00] [#]} Ncxe4 $146 {[%emt 0:01:13]} ({Predecessor:} 13... Nfxe4 14. Rd1 Bb7 15. a4 {1-0 (41) Firman,N (2531)-Rustemov,A (2544) Germany 2013}) 14. Bf4 {[%emt 0:06:22]} Bb7 {[%emt 0:01:44]} 15. f3 {[%emt 0:00:45]} Nd6 {[%emt 0:01:04]} 16. Bd3 {[%emt 0:00:32]} Nd5 {[%emt 0:02:49]} 17. Bd2 {[%emt 0:01:01]} f6 {[%emt 0:06:02]} 18. Ng4 {[%emt 0:00:45]} Rac8 {[%emt 0:00:52]} 19. b3 {[%emt 0:04:48]} b5 {[%emt 0:05:54]} 20. a3 {[%emt 0:05:50]} Rfd8 {[%emt 0:01:27]} 21. Nf2 {[%emt 0:04:45]} a6 {[%emt 0:11:28]} 22. Rac1 {[%emt 0:02:23]} Nc3 {[%emt 0:04:46]} 23. Nd1 $11 {[%emt 0:00:54]} Nxd1 {[%emt 0:01:03]} 24. Rfxd1 {[%emt 0:00:09]} Nf7 {[%emt 0:07:34]} 25. Bf4 {[%emt 0:08:31]} Rc3 {[%emt 0:03:19]} 26. Re1 {[%emt 0:03:25]} Bd5 {[%emt 0:06:16]} 27. Re3 {[%emt 0:09:34]} Rdc8 {[%emt 0:05:04]} 28. Rd1 {[%emt 0:01:08]} g5 {[%emt 0:05:38]} 29. Bg3 {[%emt 0:00:29]} h5 {[%emt 0:04:07]} 30. Be1 {[%emt 0:03:50]} R3c6 {[%emt 0:00:59]} 31. a4 {[%emt 0:04:02]} Ne5 {[%emt 0:01:54]} 32. axb5 {[%emt 0:02:02]} axb5 {[%emt 0:00:23]} 33. Bxb5 {[%emt 0:00:11]} Rxc2 {[%emt 0:00:42]} 34. Bg3 {[%emt 0:06:35]} Nf7 {[%emt 0:03:21]} 35. Bd7 {[%emt 0:05:24]} Rd8 {[%emt 0:01:13]} 36. Ba4 {[%emt 0:01:05]} g4 {[%emt 0:03:05]} 37. b4 {[%emt 0:03:23]} Rb2 {[%emt 0:00:47]} 38. Be1 {[%emt 0:02:53]} gxf3 {[%emt 0:02:01]} 39. gxf3 {[%emt 0:00:52]} Ra8 {[%emt 0:00:24]} 40. Bc3 {[%emt 0:00:00]} Ra2 {[%emt 0:00:00]} 41. Bb5 {[%emt 0:05:20]} Ng5 {[%emt 0:01:17]} 42. Be2 {[%emt 0:06:14]} R8a3 {[%emt 0:03:54]} 43. Kf2 {[%emt 0:05:26]} Bxf3 {[%emt 0:10:03]} 44. Re1 {[%emt 0:08:26]} Bg4 {[%emt 0:11:28]} 45. Bd2 {[%emt 0:03:22]} f5 {[%emt 0:04:54]} 46. Rxa3 {[%emt 0:01:13]} Ne4+ {[%emt 0:00:08]} 47. Kg1 {[%emt 0:00:07]} Rxa3 {[%emt 0:00:09]} 48. Bc1 {[%emt 0:00:30]} Rb3 {[%emt 0:01:04]} 49. Bc4 {[%emt 0:00:41]} Rxb4 {[%emt 0:00:09]} 50. Bxe6+ {[%emt 0:00:06]} Kg7 {[%emt 0:00:15]} 51. Ba3 {[%emt 0:00:32]} Ra4 {[%emt 0:01:41]} 52. Bb2+ {[%emt 0:01:43]} Kg6 {[%emt 0:00:06]} 53. Kg2 {[%emt 0:02:31]} Ng5 {[%emt 0:01:02]} 54. Bd5 {[%emt 0:02:35]} Ra5 {[%emt 0:00:35]} 55. Bg8 {[%emt 0:00:37]} h4 {[%emt 0:01:50]} 56. Rc1 {[%emt 0:01:01]} Bf3+ {[%emt 0:02:06]} 57. Kf2 {[%emt 0:01:23]} Ra8 {[%emt 0:00:41]} 58. Bc4 {[%emt 0:01:29]} Rd8 {[%emt 0:00:25]} 59. Ke3 {[%emt 0:01:08]} Be4 {[%emt 0:02:49]} 60. Rg1 {[%emt 0:00:38]} Rb8 {[%emt 0:04:51]} 61. Be5 {[%emt 0:01:12]} Rb1 {[%emt 0:01:08]} 62. Rxb1 {[%emt 0:01:19]} Bxb1 {[%emt 0:00:03]} 63. Bf1 {[%emt 0:00:38]} Ne6 {[%emt 0:00:39]} 64. Bc4 {[%emt 0:00:15]} Ng5 {[%emt 0:00:19]} 65. Bf1 {[%emt 0:00:28]} Be4 {[%emt 0:00:09]} 66. Bc3 {[%emt 0:00:10]} Bc6 {[%emt 0:01:39]} 67. Kf4 {[%emt 0:01:48]} Ne6+ {[%emt 0:00:47]} 68. Ke5 {[%emt 0:00:08]} Ng7 {[%emt 0:01:11]} 69. Be2 {[%emt 0:01:49]} Bg2 {[%emt 0:00:28]} 70. Be1 {[%emt 0:00:40]} h3 {[%emt 0:00:30]} 71. Bd3 {[%emt 0:00:39]} Kg5 {[%emt 0:01:24]} 72. Bd2+ {[%emt 0:00:18]} Kg6 {[%emt 0:01:48]} 73. Bb4 {[%emt 0:00:23]} Bf3 {[%emt 0:00:50]} 74. Bf8 {[%emt 0:00:12]} 1/2-1/2

[Event "EYCC Girls U14 2018"]
[Site "Riga"]
[Date "2018.08.24"]
[Round "5"]
[White "Wikar, Martyna"]
[Black "Kuhar, Larisa"]
[Result "1-0"]
[ECO "B50"]
[WhiteElo "1974"]
[BlackElo "1877"]
[Annotator "NA"]
[PlyCount "137"]
[EventDate "2018.08.20"]
[EventType "swiss"]
[EventCountry "LAT"]
[SourceTitle "playchess.com"]
[Source "ChessBase"]
[SourceQuality "1"]
[TimeControl "40/5400+30:1800+30"]

1. e4 {[%emt 0:00:00]} c5 {[%emt 0:00:00]} 2. Nf3 {[%emt 0:00:00]} d6 {[%emt 0:00:00]} 3. Bc4 {[%emt 0:00:00]} Nf6 {[%emt 0:00:27]} 4. d3 {[%emt 0:00:09]} e6 {[%emt 0:01:44]} 5. Bb3 {[%emt 0:00:18]} Be7 {[%emt 0:00:35]} 6. O-O {[%emt 0:00:36]} O-O {[%emt 0:00:46] B50: Sizilianisch (Verschiedenes mit 2...d6)} 7. c3 {[%emt 0:00:22]} a6 {[%emt 0:01:46]} (7... b5 8. Re1 Bb7 9. Nbd2 Nc6 10. a3 Qb6 11. Bc2 Nd7 12. Nf1 Nde5 13. Ng5 Rad8 14. Qh5 Bxg5 15. Bxg5 {1-0 (47) Popovic,D (2525)-Kozul,Z (2604) Hungary 2018}) 8. Re1 {[%emt 0:00:45]} Nc6 {[%emt 0:05:13]} 9. d4 {[%emt 0:00:45]} cxd4 {[%emt 0:14:12]} 10. Nxd4 $146 {[%emt 0:08:26]} ({Vorgänger:} 10. cxd4 e5 11. h3 b5 {1-0 (23) Stoleriu,G (2354)-Dobre,M (2044) Baile Govora 2017}) 10... Qc7 {[%emt 0:03:30]} 11. Nd2 {[%emt 0:03:04]} Bd7 {[%emt 0:02:28]} 12. Nf1 {[%emt 0:02:55]} Rac8 {[%emt 0:02:00]} 13. Ng3 {[%emt 0:03:55]} Na5 {[%emt 0:04:06]} 14. Bc2 {[%emt 0:02:04]} Nc4 {[%emt 0:02:09]} 15. Qe2 {[%emt 0:06:25]} b5 {[%emt 0:07:09]} 16. Kh1 {[%emt 0:04:41]} Qb6 {[%emt 0:09:58]} 17. f4 {[%emt 0:02:56]} b4 {[%emt 0:12:12]} 18. e5 {[%emt 0:02:41]} dxe5 {[%emt 0:05:03]} 19. fxe5 $14 {[%emt 0:03:02]} Nd5 {[%emt 0:00:50]} 20. Qg4 {[%emt 0:20:22]} f5 {[%emt 0:09:24]} 21. exf6 {[%emt 0:03:45]} Nxf6 {[%emt 0:00:34]} 22. Qe2 {[%emt 0:03:34]} Rc5 {[%emt 0:06:05]} 23. Nf3 {[%emt 0:03:10]} Rcc8 {[%emt 0:05:42]} 24. Ne4 {[%emt 0:06:50]} Bb5 {[%emt 0:02:35]} 25. Nxf6+ {[%emt 0:03:07]} Bxf6 {[%emt 0:00:18]} 26. Qe4 {[%emt 0:01:34]} g6 {[%emt 0:00:18]} 27. Bh6 {[%emt 0:03:51]} Bg7 {[%emt 0:02:02]} 28. Bxg7 {[%emt 0:00:37]} Kxg7 {[%emt 0:00:01]} 29. b3 {[%emt 0:04:37]} Na3 {[%emt 0:00:15]} 30. c4 {[%emt 0:01:08]} Nxc2 {[%emt 0:00:26]} 31. Qxc2 {[%emt 0:00:07]} Bd7 {[%emt 0:00:50]} 32. Rad1 {[%emt 0:00:35]} Qb7 {[%emt 0:01:24]} 33. Ne5 {[%emt 0:03:08]} Bc6 {[%emt 0:00:32]} 34. Qe2 {[%emt 0:01:27]} Rce8 {[%emt 0:01:38]} 35. Rd6 {[%emt 0:01:24]} Rc8 {[%emt 0:00:44]} 36. Nxc6 {[%emt 0:02:02]} Rxc6 {[%emt 0:00:01]} 37. Qxe6 {[%emt 0:01:25]} Rxd6 {[%emt 0:00:26]} 38. Qxd6 {[%emt 0:00:03]} Rf7 {[%emt 0:00:47]} 39. Qd4+ {[%emt 0:00:34]} Kh6 {[%emt 0:00:32]} 40. h3 {[%emt 0:00:00]} a5 {[%emt 0:00:00]} 41. Re4 {[%emt 0:03:10]} Rf1+ {[%emt 0:08:51]} 42. Kh2 {[%emt 0:00:19]} Qc7+ {[%emt 0:00:36]} 43. g3 {[%emt 0:02:47]} Rf7 {[%emt 0:12:00]} 44. Rh4+ {[%emt 0:06:49]} Kg5 {[%emt 0:00:09]} 45. Qd5+ {[%emt 0:04:40]} Rf5 {[%emt 0:00:44]} 46. Rg4+ {[%emt 0:00:58]} Kf6 {[%emt 0:01:07]} 47. Qd4+ {[%emt 0:00:38]} Qe5 {[%emt 0:05:21]} 48. Kg2 {[%emt 0:01:51]} Qxd4 {[%emt 0:04:00]} 49. Rxd4 {[%emt 0:00:12]} Re5 {[%emt 0:00:42]} 50. Kf2 {[%emt 0:00:34]} Kf5 {[%emt 0:01:03]} 51. Rf4+ {[%emt 0:00:36]} Ke6 {[%emt 0:00:07]} 52. Rf8 {[%emt 0:02:37]} Ke7 {[%emt 0:00:35]} 53. Ra8 {[%emt 0:00:42]} Kf6 {[%emt 0:01:52]} 54. Kf3 {[%emt 0:00:55]} Rh5 {[%emt 0:00:38]} 55. h4 {[%emt 0:00:39]} Re5 {[%emt 0:00:28]} 56. Ra6+ {[%emt 0:00:29]} Kg7 {[%emt 0:00:32]} 57. g4 {[%emt 0:00:38]} h5 {[%emt 0:00:30]} 58. Kf4 {[%emt 0:00:41]} Re1 {[%emt 0:00:31]} 59. gxh5 {[%emt 0:00:45]} Rf1+ {[%emt 0:00:27]} 60. Kg3 {[%emt 0:00:38]} gxh5 {[%emt 0:00:12]} 61. Rxa5 {[%emt 0:00:08]} Kg6 {[%emt 0:00:23]} 62. Rb5 {[%emt 0:01:23]} Ra1 {[%emt 0:00:47]} 63. Rxb4 {[%emt 0:00:06]} Rxa2 {[%emt 0:00:11]} 64. Rb6+ {[%emt 0:00:06]} Kf5 {[%emt 0:00:58]} 65. Rh6 {[%emt 0:00:17]} Ke4 {[%emt 0:00:33]} 66. Rxh5 {[%emt 0:00:08]} Rd2 {[%emt 0:00:30]} 67. Rd5 {[%emt 0:00:37]} Rb2 {[%emt 0:00:23]} 68. Rb5 {[%emt 0:00:14]} Rb1 {[%emt 0:00:30]} 69. Kg4 {[%emt 0:00:54] Kd5} 1-0

[Event "EYCC Girls U14 2018"]
[Site "Riga"]
[Date "2018.08.24"]
[Round "5"]
[White "Mkrtchyan, Mariam"]
[Black "Mironenko, Galina"]
[Result "1/2-1/2"]
[ECO "E06"]
[WhiteElo "1881"]
[BlackElo "1998"]
[Annotator "NA"]
[PlyCount "118"]
[EventDate "2018.08.20"]
[EventType "swiss"]
[EventCountry "LAT"]
[SourceTitle "playchess.com"]
[Source "ChessBase"]
[SourceQuality "1"]
[TimeControl "40/5400+30:1800+30"]

1. d4 {[%emt 0:00:00]} e6 {[%emt 0:00:00]} 2. c4 {[%emt 0:00:00]} Nf6 {[%emt 0:00:00]} 3. g3 {[%emt 0:00:46]} Be7 {[%emt 0:00:10]} 4. Bg2 {[%emt 0:00:16]} d5 {[%emt 0:00:13]} 5. Nf3 {[%emt 0:00:10]} O-O {[%emt 0:00:08]} 6. O-O {[%emt 0:01:41]} b6 {[%emt 0:00:09]} 7. Nc3 {[%emt 0:00:34]} Bb7 {[%emt 0:00:07]} 8. Ne5 {[%emt 0:00:18]} Na6 {[%emt 0:02:37]} 9. Qa4 {[%emt 0:05:18]} c5 {[%emt 0:10:59]} 10. cxd5 {[%emt 0:04:55]} exd5 {[%emt 0:05:01]} 11. Bg5 {[%emt 0:12:06]} Qd6 {[%emt 0:13:58]} 12. Rfd1 {[%emt 0:11:16]} Rfd8 {[%emt 0:07:20]} 13. Rac1 $11 {[%emt 0:06:55]} Qe6 {[%emt 0:07:25]} 14. Nd3 {[%emt 0:09:56]} Nc7 {[%emt 0:09:21]} 15. Bf4 {[%emt 0:04:38]} Bc6 {[%emt 0:03:39]} 16. Qc2 {[%emt 0:02:18]} Nce8 {[%emt 0:04:01]} 17. Be5 {[%emt 0:03:21]} c4 {[%emt 0:03:12]} 18. Nf4 {[%emt 0:00:09]} Qc8 {[%emt 0:00:26]} 19. e4 {[%emt 0:04:37]} dxe4 {[%emt 0:03:31]} 20. d5 {[%emt 0:03:02]} Bb7 {[%emt 0:02:08]} 21. Bh3 {[%emt 0:03:14]} Qc5 {[%emt 0:05:04]} 22. Nxe4 {[%emt 0:00:51]} Nxe4 {[%emt 0:01:22]} 23. Qxe4 {[%emt 0:00:02]} b5 {[%emt 0:00:51]} 24. Bg2 {[%emt 0:07:56]} Bf6 {[%emt 0:02:39]} 25. Nh5 {[%emt 0:01:03]} Bxe5 {[%emt 0:01:17]} 26. Qxe5 {[%emt 0:00:05]} Qd6 {[%emt 0:00:05]} 27. Qd4 {[%emt 0:01:13]} Qh6 {[%emt 0:01:25]} 28. Qe5 {[%emt 0:01:44]} Qd6 {[%emt 0:00:37]} 29. Qg5 {[%emt 0:01:14]} Qg6 {[%emt 0:00:58]} 30. Qh4 {[%emt 0:00:42]} Nd6 {[%emt 0:02:10]} 31. Nf4 {[%emt 0:01:55]} Qf5 {[%emt 0:00:25]} 32. Qe7 {[%emt 0:02:46]} Rd7 {[%emt 0:01:35]} 33. Qe3 {[%emt 0:00:58]} Qf6 {[%emt 0:00:41]} 34. Qd4 {[%emt 0:03:06]} Qxd4 {[%emt 0:00:24]} 35. Rxd4 {[%emt 0:00:01]} Rad8 {[%emt 0:00:39]} 36. h4 {[%emt 0:00:50]} Nc8 {[%emt 0:01:01]} 37. Rcd1 {[%emt 0:00:57]} Rd6 {[%emt 0:00:27]} 38. Ne2 {[%emt 0:01:02]} Nb6 {[%emt 0:00:51]} 39. Nc3 {[%emt 0:00:43]} a6 {[%emt 0:00:23]} 40. a3 {[%emt 0:00:00]} Kf8 {[%emt 0:00:00]} 41. g4 {[%emt 0:08:43]} Bc8 {[%emt 0:09:37]} 42. Kh2 {[%emt 0:04:37]} f6 {[%emt 0:02:40]} 43. Kg3 {[%emt 0:00:36]} Bb7 {[%emt 0:00:32]} 44. Be4 {[%emt 0:01:47]} g6 {[%emt 0:06:39]} 45. Bg2 {[%emt 0:07:38]} Kg7 {[%emt 0:01:33]} 46. Kf4 {[%emt 0:00:36]} h6 {[%emt 0:04:11]} 47. h5 {[%emt 0:04:33]} g5+ {[%emt 0:01:19]} 48. Kg3 {[%emt 0:00:06]} Bc8 {[%emt 0:04:47]} 49. Bh3 {[%emt 0:01:34]} Be6 {[%emt 0:02:34]} 50. R4d2 {[%emt 0:04:39]} Bf7 {[%emt 0:01:39]} 51. Bg2 {[%emt 0:00:22]} f5 {[%emt 0:01:15]} 52. Bf3 {[%emt 0:03:03]} f4+ {[%emt 0:01:19]} 53. Kg2 {[%emt 0:00:02]} Kf8 {[%emt 0:00:52]} 54. Re2 {[%emt 0:00:33]} Nxd5 {[%emt 0:02:18]} 55. Nxd5 {[%emt 0:04:59]} Bxd5 {[%emt 0:00:07]} 56. Bxd5 {[%emt 0:00:05]} Rxd5 {[%emt 0:00:05]} 57. Rxd5 {[%emt 0:00:49]} Rxd5 {[%emt 0:00:09]} 58. Re6 {[%emt 0:00:03]} Kg7 {[%emt 0:00:42]} 59. Rg6+ {[%emt 0:00:34]} Kh7 {[%emt 0:00:14]} 1/2-1/2

[Event "EYCC Girls U14 2018"]
[Site "Riga"]
[Date "2018.08.24"]
[Round "5"]
[White "Sovina, Maria"]
[Black "Stepanyan, Eva"]
[Result "0-1"]
[ECO "E32"]
[WhiteElo "1856"]
[BlackElo "2101"]
[Annotator "NA"]
[PlyCount "78"]
[EventDate "2018.08.20"]
[EventType "swiss"]
[EventCountry "LAT"]
[SourceTitle "playchess.com"]
[Source "ChessBase"]
[SourceQuality "1"]
[TimeControl "40/5400+30:1800+30"]

1. d4 {[%emt 0:00:00]} Nf6 {[%emt 0:00:00]} 2. c4 {[%emt 0:00:00]} e6 {[%emt 0:00:00]} 3. Nc3 {[%emt 0:00:00]} Bb4 {[%emt 0:00:00]} 4. Qc2 {[%emt 0:00:00]} O-O {[%emt 0:00:28]} 5. a3 {[%emt 0:00:00]} Bxc3+ {[%emt 0:01:36]} 6. Qxc3 {[%emt 0:00:00]} b6 {[%emt 0:00:49]} 7. Bg5 {[%emt 0:00:00]} Bb7 {[%emt 0:00:49]} 8. e3 {[%emt 0:00:00]} h6 {[%emt 0:01:16]} 9. Bh4 {[%emt 0:00:38]} d5 {[%emt 0:05:25]} 10. cxd5 {[%emt 0:01:58]} g5 {[%emt 0:13:30]} 11. Bg3 {[%emt 0:04:21]} Nxd5 {[%emt 0:00:50]} 12. Qc2 {[%emt 0:04:01]} Nd7 {[%emt 0:05:54]} 13. h4 {[%emt 0:10:13]} c5 {[%emt 0:09:10]} 14. hxg5 {[%emt 0:13:13]} Qxg5 $18 {[%emt 0:00:15]} 15. Nf3 {[%emt 0:05:20]} Nxe3 {[%emt 0:16:05]} 16. Qd3 {[%emt 0:14:24]} Bxf3 {[%emt 0:02:30]} 17. Qxe3 {[%emt 0:02:07]} Qxe3+ {[%emt 0:04:36]} 18. fxe3 {[%emt 0:00:01]} Bc6 {[%emt 0:05:08]} 19. Rc1 {[%emt 0:09:04]} Kg7 {[%emt 0:05:19]} 20. Bd6 {[%emt 0:02:36]} Rfe8 {[%emt 0:03:02]} 21. b4 {[%emt 0:05:48]} e5 {[%emt 0:03:39]} 22. dxc5 {[%emt 0:01:35]} bxc5 {[%emt 0:00:11]} 23. bxc5 {[%emt 0:02:02]} Re6 {[%emt 0:01:37]} 24. Bd3 {[%emt 0:07:35]} e4 {[%emt 0:01:01]} 25. Bc4 {[%emt 0:02:25]} Rg6 {[%emt 0:00:14]} 26. Rc2 {[%emt 0:01:07]} Re8 {[%emt 0:01:17]} 27. Rf1 {[%emt 0:01:29]} f6 {[%emt 0:00:15]} 28. a4 {[%emt 0:05:33]} Ne5 {[%emt 0:03:06]} 29. Bxe5 {[%emt 0:04:24]} Rxe5 {[%emt 0:00:05]} 30. Bb5 f5 {[%emt 0:00:55]} 31. Rff2 {[%emt 0:01:02]} a6 {[%emt 0:01:06]} 32. Be2 {[%emt 0:01:04]} Bxa4 {[%emt 0:00:54]} 33. Rc4 {[%emt 0:01:44]} Bb5 {[%emt 0:00:41]} 34. Rc3 {[%emt 0:00:36]} Rc6 {[%emt 0:00:48]} 35. Bxb5 axb5 {[%emt 0:00:06]} 36. Rfc2 {[%emt 0:00:24]} Kf6 {[%emt 0:01:18]} 37. Kd2 {[%emt 0:01:37]} Rd5+ {[%emt 0:01:20]} 38. Kc1 {[%emt 0:01:10]} Ke5 {[%emt 0:06:44]} 39. g3 {[%emt 0:00:58]} Kf6 {[%emt 0:06:04]} 0-1

[Event "EYCC Girls U14 2018"]
[Site "Riga"]
[Date "2018.08.24"]
[Round "5"]
[White "Efendieva, Alina"]
[Black "Guillo Longares, Cecilia"]
[Result "0-1"]
[ECO "B35"]
[WhiteElo "1843"]
[BlackElo "2030"]
[Annotator "NA"]
[PlyCount "112"]
[EventDate "2018.08.20"]
[EventType "swiss"]
[EventCountry "LAT"]
[SourceTitle "playchess.com"]
[Source "ChessBase"]
[SourceQuality "1"]
[TimeControl "40/5400+30:1800+30"]

1. e4 {[%emt 0:00:00]} c5 {[%emt 0:00:00]} 2. Nf3 {[%emt 0:00:00]} Nc6 {[%emt 0:00:00]} 3. d4 {[%emt 0:00:00]} cxd4 {[%emt 0:00:00]} 4. Nxd4 {[%emt 0:00:00]} g6 {[%emt 0:00:00]} 5. Nc3 {[%emt 0:00:00]} Bg7 {[%emt 0:00:00]} 6. Be3 {[%emt 0:00:00]} Nf6 {[%emt 0:00:00]} 7. Bc4 {[%emt 0:00:03]} O-O {[%emt 0:00:00]} 8. Bb3 {[%emt 0:00:11]} Re8 {[%emt 0:00:00] B35: Sicilian: Accelerated Dragon with 5 Nc3: main line} 9. f3 {[%emt 0:00:45] LiveBook: 43 Games} e6 {[%emt 0:00:05]} (9... d5 10. exd5 Nb4 11. Nde2 e6 12. Bd4 exd5 13. O-O Be6 14. Bf2 d4 15. Nxd4 Bxb3 16. Nxb3 {½-½ (16) Jakovenko,D (2735)-Gelfand,B (2695) Poikovsky 2018}) 10. Qd2 {[%emt 0:08:28]} d5 {[%emt 0:00:17]} 11. O-O $146 {[%emt 0:20:40]} ({Predecessor:} 11. O-O-O Nxd4 12. Bxd4 e5 13. Bf2 d4 14. Ne2 a5 15. c3 Qc7 16. Kb1 {½-½ (29) Talpak,T (2468)-Williamson,H (2537) ICCF email 2016}) 11... Nxd4 {[%emt 0:02:00]} 12. Bxd4 {[%emt 0:00:54]} dxe4 {[%emt 0:01:46]} 13. fxe4 {[%emt 0:01:12]} Nxe4 {[%emt 0:00:32]} 14. Nxe4 {[%emt 0:02:29]} Qxd4+ {[%emt 0:00:20]} 15. Qxd4 {[%emt 0:08:42]} Bxd4+ {[%emt 0:00:58]} 16. Kh1 {[%emt 0:00:04]} Bxb2 {[%emt 0:01:36]} 17. Rae1 {[%emt 0:01:35]} Bg7 {[%emt 0:01:00]} 18. Nd6 {[%emt 0:00:44]} Re7 {[%emt 0:01:25]} 19. Rf3 {[%emt 0:01:46]} Bd7 {[%emt 0:04:32]} 20. Ref1 {[%emt 0:16:45]} Be8 {[%emt 0:02:33]} 21. a4 {[%emt 0:01:42]} Rd8 {[%emt 0:00:32]} 22. Nc4 {[%emt 0:01:32]} Red7 {[%emt 0:01:48]} 23. Ne3 $19 {[%emt 0:02:04]} Rd2 {[%emt 0:01:38]} 24. Bc4 {[%emt 0:02:51]} Bd4 {[%emt 0:11:01]} 25. Ng4 {[%emt 0:02:11]} Bc6 {[%emt 0:00:45]} 26. Rg3 {[%emt 0:01:31]} Kg7 {[%emt 0:00:57]} 27. c3 {[%emt 0:06:39]} Bxc3 {[%emt 0:08:14]} 28. Rxc3 {[%emt 0:00:13]} Rxg2 {[%emt 0:00:29]} 29. Rxf7+ {[%emt 0:01:11]} Kg8 {[%emt 0:04:11]} 30. Nh6+ {[%emt 0:05:19]} Kh8 {[%emt 0:00:05]} 31. Bf1 {[%emt 0:00:18]} Rdd2 {[%emt 0:07:16]} 32. Rxc6 {[%emt 0:03:47]} Rxh2+ {[%emt 0:00:06]} 33. Kg1 {[%emt 0:00:03]} bxc6 {[%emt 0:00:04]} 34. Ng4 {[%emt 0:01:43]} Rh4 {[%emt 0:00:45]} 35. Nf6 {[%emt 0:00:23]} Rdd4 {[%emt 0:02:26]} 36. Rxa7 {[%emt 0:07:42]} Rxa4 {[%emt 0:00:33]} 37. Re7 {[%emt 0:00:18]} Ra1 {[%emt 0:01:19]} 38. Rf7 {[%emt 0:02:54]} e5 {[%emt 0:06:46]} 39. Kg2 {[%emt 0:00:36]} Raa4 {[%emt 0:00:17]} 40. Bd3 {[%emt 0:00:00]} Raf4 {[%emt 0:00:00]} 41. Kg3 {[%emt 0:03:37]} Rh6 {[%emt 0:03:14]} 42. Bc2 {[%emt 0:05:47]} c5 {[%emt 0:02:42]} 43. Be4 {[%emt 0:01:12]} g5 {[%emt 0:02:12]} 44. Ng4 {[%emt 0:01:34]} Rh4 {[%emt 0:06:17]} 45. Rxf4 {[%emt 0:01:18]} exf4+ {[%emt 0:00:12]} 46. Kf3 {[%emt 0:00:10]} Rh3+ {[%emt 0:00:16]} 47. Kf2 {[%emt 0:00:10]} h5 {[%emt 0:00:31]} 48. Ne5 {[%emt 0:00:34]} Kg7 {[%emt 0:00:55]} 49. Nf3 {[%emt 0:02:24]} Kf6 {[%emt 0:01:02]} 50. Nd2 {[%emt 0:00:40]} g4 {[%emt 0:05:12]} 51. Bg2 {[%emt 0:00:42]} Ra3 {[%emt 0:00:07]} 52. Ne4+ {[%emt 0:01:14]} Kf5 {[%emt 0:00:21]} 53. Nxc5 {[%emt 0:00:47]} g3+ {[%emt 0:00:12]} 54. Ke1 {[%emt 0:00:50]} Ra1+ {[%emt 0:00:53]} 55. Ke2 {[%emt 0:00:14]} Ra2+ {[%emt 0:00:07]} 56. Kf3 {[%emt 0:00:33]} Rf2# {[%emt 0:00:08] Bf1} 0-1